fUSD/lending_fUSD_20260608
["ID","MTS","AMOUNT","RATE_DAILY","PERIOD"]
[424451662,1780918242000,-15000.0,0.00014975,2]
[424451663,1780918242000,-350.0,0.00014976,2]
[424451678,1780918242000,-151.0,0.00014997,2]
[424451666,1780918242000,-150.0,0.00014985,2]
[424451667,1780918242000,-440.39,0.00014985,2]
[424451664,1780918242000,-150.0,0.00014985,2]
[424451668,1780918242000,-497.65,0.00014985,2]
[424451670,1780918242000,-168.21959693,0.00014986,2]
[424451669,1780918242000,-150.0,0.00014986,2]
[424451671,1780918242000,-150.0,0.00014986,2]
[424451674,1780918242000,-300.0,0.00014988,2]
[424451672,1780918242000,-151.0,0.00014986,2]
[424451673,1780918242000,-150.0,0.00014986,2]
[424451676,1780918242000,-10558.17709739,0.00014989,2]
[424451665,1780918242000,-186.18,0.00014985,2]
[424451706,1780918244000,-344.10950028,0.00015,2]
[424451700,1780918244000,-276.07647603,0.00015,2]
[424451705,1780918244000,-448.0,0.00013621,2]
[424451710,1780918244000,-7722.82578174,0.00015,2]
[424451708,1780918244000,-300.13246974,0.00013828,2]
[424451707,1780918244000,-2109.3632371,0.00015,2]
[424451709,1780918244000,-1373.01943026,0.00013828,2]
[424451717,1780918244000,-2868.59911662,0.00015,2]
[424451712,1780918244000,-3454.1114814,0.00015,2]
[424451713,1780918244000,-58946.60140814,0.00015,2]
[424451715,1780918244000,-1995246.67428724,0.00015,2]
[424451716,1780918244000,-2825.2977328,0.00015,2]
[424451714,1780918244000,-29280.45583502,0.00015,2]
[424451718,1780918244000,-337.59068554,0.00015,2]
[424451719,1780918244000,-406.68995999,0.00015,2]
[424451711,1780918244000,-1000.0,0.00015,2]
[424451720,1780918245000,-1147.95709061,0.00015,2]
[424451722,1780918245000,-11178.70379702,0.00015,2]
[424451723,1780918245000,-6369.85934022,0.00015,2]
[424451721,1780918245000,-1146.57140496,0.00015,2]
[424451724,1780918245000,-383.39828094,0.00015,2]
[424451726,1780918245000,-290.0,0.00015,2]
[424451725,1780918245000,-968.38065445,0.00015,2]
[424451727,1780918245000,-5720.87362264,0.00015,2]
[424451728,1780918245000,-934.13766006,0.00015,2]
[424451731,1780918247000,-452.0,0.00013621,2]
[424451733,1780918247000,-635.5062481,0.00014925,2]
[424451735,1780918247000,-707.16647587,0.00014925,2]
[424451734,1780918247000,-576.47645733,0.00014925,2]
[424451736,1780918247000,-1783.65937132,0.00014925,2]
[424451732,1780918247000,-971.73176999,0.00014925,2]
[424451740,1780918247000,-370.45,0.00015,2]
[424451739,1780918247000,-551235.28134961,0.00015,2]
[424451738,1780918247000,-433.05714431,0.00014925,2]
[424451742,1780918247000,-5837.07173078,0.00015,2]
[424451741,1780918247000,-1411.05551518,0.00015,2]
[424451743,1780918247000,-551.86367503,0.00015,2]
[424451737,1780918247000,-966.40253308,0.00014925,2]
[424451744,1780918248000,-605.63053535,0.00015,2]
[424451753,1780918926000,1000.0,0.00030137,120]
[424451754,1780918945000,1245.0,0.00030137,120]
[424451762,1780919304000,-250.0,0.00010086,2]
[424451759,1780919304000,-150.0,9.24e-05,2]
[424451758,1780919304000,-150.0,9.169e-05,2]
[424451761,1780919304000,-177.41,9.453e-05,2]
[424451760,1780919304000,-150.0,9.412e-05,2]
[424451763,1780919304000,-193.33491251,0.00010086,2]
[424451765,1780919304000,-583.11127133,0.000102,2]
[424451764,1780919304000,-534.80646357,0.000102,2]
[424451767,1780919304000,-625.37257898,0.00010363,2]
[424451768,1780919304000,-2974.03522639,0.00010363,2]
[424451769,1780919304000,-1976.58049342,0.00010363,2]
[424451770,1780919304000,-250.35241809,0.00010424,2]
[424451772,1780919304000,-597.10231488,0.00011,2]
[424451771,1780919304000,-150.0,0.00010999,2]
[424451773,1780919304000,-2974.03522639,0.00011,2]
[424451766,1780919304000,-160.0,0.00010221,2]
[424451774,1780919304000,-1594.0937541,0.00011,2]
[424451775,1780919345000,155.18,0.00028973,120]
[424451776,1780919361000,-286.06465649,0.00011,2]
[424451779,1780919361000,-825.42970719,0.00011,2]
[424451778,1780919361000,-249.34782698,0.00011,2]
[424451777,1780919361000,-236.14364311,0.00011,2]
[424451787,1780919431000,-4473.41933109,0.00011,2]
[424451786,1780919431000,-2640.36756126,0.00011,2]
[424451785,1780919431000,-693.78075878,0.00011,2]
[424451789,1780919432000,-811.50471421,0.00011,2]
[424451791,1780919432000,-5994.89950038,0.00011,2]
[424451788,1780919432000,-271.90586894,0.00011,2]
[424451793,1780919432000,-683.18712388,0.00011,2]
[424451792,1780919432000,-1348.66828566,0.00011,2]
[424451790,1780919432000,-253.46543089,0.00011,2]
[424451819,1780919437000,-4589.61695683,0.00011,2]
[424451817,1780919437000,-1718.32,0.00011,2]
[424451821,1780919437000,-508.74108437,0.00011,2]
[424451820,1780919437000,-535.41792625,0.00011,2]
[424451823,1780919437000,-847.20337757,0.00011,2]
[424451824,1780919437000,-254.23401909,0.00011,2]
[424451825,1780919437000,-760.11851838,0.00011,2]
[424451822,1780919437000,-2903.13387152,0.00011,2]
[424451838,1780919439000,-652.08200092,0.00011,2]
[424451837,1780919439000,-1422.40298316,0.00011,2]
[424451836,1780919439000,-595.85768052,0.00011,2]
[424451862,1780919440000,-500.0,0.00012704,2]
[424451863,1780919440000,-500.0,0.00012704,2]
[424451864,1780919440000,-223301.15589333,0.00012704,2]
[424451868,1780919440000,-872.16878657,0.00012721,2]
[424451867,1780919440000,-231.32,0.00012716,2]
[424451871,1780919440000,-872.16878657,0.00012721,2]
[424451866,1780919440000,-302425.23505216,0.00012704,2]
[424451869,1780919440000,-872.16878657,0.00012721,2]
[424451881,1780919440000,-872.16878657,0.00012721,2]
[424451865,1780919440000,-2962.65685451,0.00012704,2]
[424451870,1780919440000,-872.16878657,0.00012721,2]
[424451876,1780919440000,-872.16878657,0.00012721,2]
[424451875,1780919440000,-872.16878657,0.00012721,2]
[424451874,1780919440000,-872.16878657,0.00012721,2]
[424451873,1780919440000,-872.16878657,0.00012721,2]
[424451877,1780919440000,-872.16878657,0.00012721,2]
[424451880,1780919440000,-872.16878657,0.00012721,2]
[424451878,1780919440000,-872.16878657,0.00012721,2]
[424451860,1780919440000,-347.181033,0.00012665,2]
[424451872,1780919440000,-872.16878657,0.00012721,2]
[424451861,1780919440000,-900.0,0.000127,4]
[424451844,1780919440000,-1602.13,0.00011697,2]
[424451858,1780919440000,-400.0,0.000126,4]
[424451840,1780919440000,-363.01997969,0.00011152,2]
[424451841,1780919440000,-327.9508807,0.00011203,2]
[424451839,1780919440000,-11279.45587716,0.00011,2]
[424451842,1780919440000,-231.32,0.00011303,2]
[424451879,1780919440000,-872.16878657,0.00012721,2]
[424451843,1780919440000,-4195.72,0.00011506,2]
[424451846,1780919440000,-4194.28,0.00011726,2]
[424451845,1780919440000,-440.91,0.00011715,2]
[424451847,1780919440000,-457.29,0.00011779,2]
[424451850,1780919440000,-152.51561585,0.0001194,2]
[424451848,1780919440000,-1024.57209069,0.00011819,2]
[424451849,1780919440000,-3530.47,0.00011856,2]
[424451851,1780919440000,-255.0,0.00012044,2]
[424451856,1780919440000,-217.99,0.00012577,2]
[424451855,1780919440000,-155.18,0.00012329,2]
[424451857,1780919440000,-153.46,0.00012578,2]
[424451853,1780919440000,-250.0,0.000121,2]
[424451854,1780919440000,-166.65,0.00012133,2]
[424451852,1780919440000,-193.98753391,0.000121,2]
[424451859,1780919440000,-3720.68470655,0.00012616,2]
[424451882,1780919440000,-872.16878657,0.00012721,2]
[424451883,1780919440000,-872.16878657,0.00012721,2]
[424451925,1780919440000,-872.16878657,0.00012721,2]
[424451909,1780919440000,-872.16878657,0.00012721,2]
[424451911,1780919440000,-872.16878657,0.00012721,2]
[424451913,1780919440000,-872.16878657,0.00012721,2]
[424451915,1780919440000,-872.16878657,0.00012721,2]
[424451916,1780919440000,-872.16878657,0.00012721,2]
[424451919,1780919440000,-872.16878657,0.00012721,2]
[424451921,1780919440000,-872.16878657,0.00012721,2]
[424451908,1780919440000,-872.16878657,0.00012721,2]
[424451922,1780919440000,-872.16878657,0.00012721,2]
[424451918,1780919440000,-872.16878657,0.00012721,2]
[424451923,1780919440000,-872.16878657,0.00012721,2]
[424451924,1780919440000,-872.16878657,0.00012721,2]
[424451884,1780919440000,-872.16878657,0.00012721,2]
[424451931,1780919440000,-852.23350001,0.00012721,2]
[424451928,1780919440000,-852.23350001,0.00012721,2]
[424451926,1780919440000,-234.99843405,0.00012721,2]
[424451927,1780919440000,-852.23350001,0.00012721,2]
[424451930,1780919440000,-852.23350001,0.00012721,2]
[424451929,1780919440000,-852.23350001,0.00012721,2]
[424451907,1780919440000,-872.16878657,0.00012721,2]
[424451906,1780919440000,-872.16878657,0.00012721,2]
[424451914,1780919440000,-872.16878657,0.00012721,2]
[424451902,1780919440000,-872.16878657,0.00012721,2]
[424451890,1780919440000,-872.16878657,0.00012721,2]
[424451891,1780919440000,-872.16878657,0.00012721,2]
[424451892,1780919440000,-872.16878657,0.00012721,2]
[424451903,1780919440000,-872.16878657,0.00012721,2]
[424451893,1780919440000,-872.16878657,0.00012721,2]
[424451887,1780919440000,-872.16878657,0.00012721,2]
[424451889,1780919440000,-872.16878657,0.00012721,2]
[424451885,1780919440000,-872.16878657,0.00012721,2]
[424451886,1780919440000,-872.16878657,0.00012721,2]
[424451894,1780919440000,-872.16878657,0.00012721,2]
[424451888,1780919440000,-872.16878657,0.00012721,2]
[424451899,1780919440000,-872.16878657,0.00012721,2]
[424451895,1780919440000,-872.16878657,0.00012721,2]
[424451897,1780919440000,-872.16878657,0.00012721,2]
[424451898,1780919440000,-872.16878657,0.00012721,2]
[424451901,1780919440000,-872.16878657,0.00012721,2]
[424451905,1780919440000,-872.16878657,0.00012721,2]
[424451900,1780919440000,-872.16878657,0.00012721,2]
[424451896,1780919440000,-872.16878657,0.00012721,2]
[424451904,1780919440000,-872.16878657,0.00012721,2]
[424451977,1780919441000,-1408.77700512,0.00012765,2]
[424451975,1780919441000,-489.84630773,0.00012765,2]
[424451973,1780919441000,-500.0,0.00012721,2]
[424451972,1780919441000,-500.0,0.00012721,2]
[424451968,1780919441000,-852.23349999,0.00012721,2]
[424451969,1780919441000,-852.23349999,0.00012721,2]
[424451967,1780919441000,-500.0,0.00012721,2]
[424451970,1780919441000,-360.82127347,0.00012721,2]
[424451966,1780919441000,-852.23349999,0.00012721,2]
[424451974,1780919441000,-323145.02866671,0.00012722,2]
[424451963,1780919441000,-476.32342177,0.00012721,2]
[424451976,1780919441000,-1107.37387678,0.00012765,2]
[424451971,1780919441000,-617.22066725,0.00012721,2]
[424451988,1780919441000,-500.0,0.00012804,2]
[424451965,1780919441000,-500.0,0.00012721,2]
[424451981,1780919441000,-500.0,0.00012804,2]
[424451978,1780919441000,-3720.68470655,0.00012786,2]
[424451979,1780919441000,-1400.0,0.000128,4]
[424451980,1780919441000,-150.0,0.00012804,2]
[424451982,1780919441000,-500.0,0.00012804,2]
[424451983,1780919441000,-500.0,0.00012804,2]
[424451984,1780919441000,-500.0,0.00012804,2]
[424451985,1780919441000,-500.0,0.00012804,2]
[424451986,1780919441000,-500.0,0.00012804,2]
[424451990,1780919441000,-500.0,0.00012804,2]
[424451989,1780919441000,-500.0,0.00012804,2]
[424451991,1780919441000,-12812.88,0.00012893,2]
[424451995,1780919441000,-347.18103299,0.00013038,2]
[424452000,1780919441000,-500.0,0.00013315,2]
[424451987,1780919441000,-500.0,0.00012804,2]
[424451964,1780919441000,-500.0,0.00012721,2]
[424451999,1780919441000,-3720.68470655,0.00013298,2]
[424451960,1780919441000,-502.12776171,0.00012721,2]
[424451935,1780919441000,-852.23350001,0.00012721,2]
[424451934,1780919441000,-852.23350001,0.00012721,2]
[424451932,1780919441000,-852.23350001,0.00012721,2]
[424451933,1780919441000,-852.23350001,0.00012721,2]
[424451936,1780919441000,-852.23350001,0.00012721,2]
[424451938,1780919441000,-852.23350001,0.00012721,2]
[424451944,1780919441000,-852.23350001,0.00012721,2]
[424451937,1780919441000,-852.23350001,0.00012721,2]
[424451939,1780919441000,-852.23350001,0.00012721,2]
[424451940,1780919441000,-852.23350001,0.00012721,2]
[424451942,1780919441000,-852.23350001,0.00012721,2]
[424451947,1780919441000,-852.23350001,0.00012721,2]
[424451943,1780919441000,-852.23350001,0.00012721,2]
[424451948,1780919441000,-852.23350001,0.00012721,2]
[424451946,1780919441000,-852.23350001,0.00012721,2]
[424451941,1780919441000,-852.23350001,0.00012721,2]
[424451945,1780919441000,-852.23350001,0.00012721,2]
[424451949,1780919441000,-852.23350001,0.00012721,2]
[424451950,1780919441000,-852.23350001,0.00012721,2]
[424451952,1780919441000,-852.23350001,0.00012721,2]
[424451953,1780919441000,-852.23350001,0.00012721,2]
[424451954,1780919441000,-852.23350001,0.00012721,2]
[424451957,1780919441000,-852.23350001,0.00012721,2]
[424451958,1780919441000,-852.23350001,0.00012721,2]
[424451955,1780919441000,-852.23350001,0.00012721,2]
[424451956,1780919441000,-852.23350001,0.00012721,2]
[424451951,1780919441000,-852.23350001,0.00012721,2]
[424451959,1780919441000,-500.0,0.00012721,2]
[424451961,1780919441000,-500.0,0.00012721,2]
[424451962,1780919441000,-500.0,0.00012721,2]
[424451993,1780919441000,-1368.68,0.000129,2]
[424452056,1780919441000,-565.06229658,0.00013425,2]
[424451994,1780919441000,-3720.68470655,0.00012957,2]
[424452030,1780919441000,-500.0,0.00013425,2]
[424452033,1780919441000,-500.0,0.00013425,2]
[424452029,1780919441000,-500.0,0.00013425,2]
[424452035,1780919441000,-202.32764356,0.00013425,2]
[424452039,1780919441000,-500.0,0.00013425,2]
[424452034,1780919441000,-500.0,0.00013425,2]
[424452036,1780919441000,-150.0,0.00013425,2]
[424452037,1780919441000,-500.0,0.00013425,2]
[424452038,1780919441000,-500.0,0.00013425,2]
[424452041,1780919441000,-500.0,0.00013425,2]
[424452042,1780919441000,-520.4437061,0.00013425,2]
[424452043,1780919441000,-500.0,0.00013425,2]
[424452044,1780919441000,-500.0,0.00013425,2]
[424452045,1780919441000,-500.0,0.00013425,2]
[424452048,1780919441000,-500.0,0.00013425,2]
[424452047,1780919441000,-500.0,0.00013425,2]
[424452053,1780919441000,-500.0,0.00013425,2]
[424452046,1780919441000,-500.0,0.00013425,2]
[424452050,1780919441000,-500.0,0.00013425,2]
[424452049,1780919441000,-500.0,0.00013425,2]
[424452052,1780919441000,-500.0,0.00013425,2]
[424452051,1780919441000,-500.0,0.00013425,2]
[424452054,1780919441000,-500.0,0.00013425,2]
[424452060,1780919441000,-151.47284327,0.00013425,2]
[424452057,1780919441000,-150.0,0.00013425,2]
[424452055,1780919441000,-500.0,0.00013425,2]
[424452061,1780919441000,-150.0,0.00013425,2]
[424452058,1780919441000,-150.0,0.00013425,2]
[424451992,1780919441000,-1900.0,0.000129,4]
[424452031,1780919441000,-500.0,0.00013425,2]
[424452040,1780919441000,-500.0,0.00013425,2]
[424452059,1780919441000,-200.0,0.00013425,2]
[424452028,1780919441000,-500.0,0.00013425,2]
[424452032,1780919441000,-500.0,0.00013425,2]
[424451997,1780919441000,-433.0,0.00013188,2]
[424451998,1780919441000,-457.29,0.00013252,2]
[424452001,1780919441000,-600.0,0.00013356,2]
[424452002,1780919441000,-347.18103299,0.0001341,2]
[424452004,1780919441000,-500.0,0.00013425,2]
[424452006,1780919441000,-500.0,0.00013425,2]
[424452005,1780919441000,-150.0,0.00013425,2]
[424452007,1780919441000,-150.0,0.00013425,2]
[424452011,1780919441000,-298.70676482,0.00013425,2]
[424452012,1780919441000,-500.0,0.00013425,2]
[424452008,1780919441000,-500.0,0.00013425,2]
[424452009,1780919441000,-500.0,0.00013425,2]
[424452013,1780919441000,-500.0,0.00013425,2]
[424452010,1780919441000,-500.0,0.00013425,2]
[424451996,1780919441000,-3720.68470655,0.00013127,2]
[424452014,1780919441000,-500.0,0.00013425,2]
[424452003,1780919441000,-150.0,0.00013425,2]
[424452024,1780919441000,-500.0,0.00013425,2]
[424452025,1780919441000,-500.0,0.00013425,2]
[424452023,1780919441000,-500.0,0.00013425,2]
[424452022,1780919441000,-500.0,0.00013425,2]
[424452018,1780919441000,-500.0,0.00013425,2]
[424452021,1780919441000,-500.0,0.00013425,2]
[424452027,1780919441000,-645.84508962,0.00013425,2]
[424452026,1780919441000,-500.0,0.00013425,2]
[424452017,1780919441000,-500.0,0.00013425,2]
[424452019,1780919441000,-500.0,0.00013425,2]
[424452016,1780919441000,-500.0,0.00013425,2]
[424452015,1780919441000,-500.0,0.00013425,2]
[424452020,1780919441000,-500.0,0.00013425,2]
[424452102,1780919442000,-543.0,0.00013425,2]
[424452117,1780919442000,-552.0,0.00013425,2]
[424452116,1780919442000,-918.0,0.00013425,2]
[424452106,1780919442000,-543.0,0.00013425,2]
[424452100,1780919442000,-543.0,0.00013425,2]
[424452098,1780919442000,-906.0,0.00013425,2]
[424452096,1780919442000,-906.0,0.00013425,2]
[424452103,1780919442000,-906.0,0.00013425,2]
[424452097,1780919442000,-543.0,0.00013425,2]
[424452095,1780919442000,-543.0,0.00013425,2]
[424452101,1780919442000,-906.0,0.00013425,2]
[424452104,1780919442000,-543.0,0.00013425,2]
[424452105,1780919442000,-906.0,0.00013425,2]
[424452114,1780919442000,-906.0,0.00013425,2]
[424452118,1780919442000,-349.04670431,0.00013426,7]
[424452107,1780919442000,-906.0,0.00013425,2]
[424452108,1780919442000,-543.0,0.00013425,2]
[424452111,1780919442000,-543.0,0.00013425,2]
[424452112,1780919442000,-906.0,0.00013425,2]
[424452110,1780919442000,-906.0,0.00013425,2]
[424452113,1780919442000,-543.0,0.00013425,2]
[424452115,1780919442000,-543.0,0.00013425,2]
[424452120,1780919442000,-150.25705167,0.00013488,2]
[424452122,1780919442000,-150.0,0.00013488,2]
[424452121,1780919442000,-150.0,0.00013488,2]
[424452131,1780919442000,-203.80794025,0.00013488,2]
[424452124,1780919442000,-150.0,0.00013488,2]
[424452093,1780919442000,-543.0,0.00013425,2]
[424452119,1780919442000,-3720.68470655,0.00013468,2]
[424452099,1780919442000,-543.0,0.00013425,2]
[424452073,1780919442000,-906.0,0.00013425,2]
[424452092,1780919442000,-906.0,0.00013425,2]
[424452064,1780919442000,-500.0,0.00013425,2]
[424452066,1780919442000,-906.0,0.00013425,2]
[424452065,1780919442000,-500.0,0.00013425,2]
[424452062,1780919442000,-500.0,0.00013425,2]
[424452063,1780919442000,-150.0,0.00013425,2]
[424452068,1780919442000,-500.0,0.00013425,2]
[424452078,1780919442000,-543.0,0.00013425,2]
[424452079,1780919442000,-906.0,0.00013425,2]
[424452067,1780919442000,-500.0,0.00013425,2]
[424452069,1780919442000,-906.0,0.00013425,2]
[424452074,1780919442000,-543.0,0.00013425,2]
[424452070,1780919442000,-179.0070577,0.00013425,2]
[424452077,1780919442000,-906.0,0.00013425,2]
[424452071,1780919442000,-543.0,0.00013425,2]
[424452072,1780919442000,-906.0,0.00013425,2]
[424452075,1780919442000,-906.0,0.00013425,2]
[424452076,1780919442000,-543.0,0.00013425,2]
[424452080,1780919442000,-543.0,0.00013425,2]
[424452082,1780919442000,-543.0,0.00013425,2]
[424452091,1780919442000,-543.0,0.00013425,2]
[424452085,1780919442000,-543.0,0.00013425,2]
[424452083,1780919442000,-543.0,0.00013425,2]
[424452081,1780919442000,-906.0,0.00013425,2]
[424452084,1780919442000,-906.0,0.00013425,2]
[424452090,1780919442000,-906.0,0.00013425,2]
[424452089,1780919442000,-543.0,0.00013425,2]
[424452086,1780919442000,-906.0,0.00013425,2]
[424452088,1780919442000,-906.0,0.00013425,2]
[424452087,1780919442000,-543.0,0.00013425,2]
[424452094,1780919442000,-906.0,0.00013425,2]
[424452125,1780919442000,-151.93797256,0.00013488,2]
[424452128,1780919442000,-169.83658506,0.00013488,2]
[424452132,1780919442000,-500.0,0.00013607,2]
[424452165,1780919442000,-500.0,0.00013698,2]
[424452161,1780919442000,-500.0,0.00013698,2]
[424452157,1780919442000,-500.0,0.00013698,2]
[424452162,1780919442000,-500.0,0.00013698,2]
[424452166,1780919442000,-500.0,0.00013698,2]
[424452164,1780919442000,-500.0,0.00013698,2]
[424452167,1780919442000,-500.0,0.00013698,2]
[424452163,1780919442000,-500.0,0.00013698,2]
[424452170,1780919442000,-500.0,0.00013698,2]
[424452172,1780919442000,-500.0,0.00013698,2]
[424452173,1780919442000,-500.0,0.00013698,2]
[424452174,1780919442000,-500.0,0.00013698,2]
[424452171,1780919442000,-500.0,0.00013698,2]
[424452160,1780919442000,-500.0,0.00013698,2]
[424452175,1780919442000,-500.0,0.00013698,2]
[424452176,1780919442000,-500.0,0.00013698,2]
[424452181,1780919442000,-9999.99,0.00013699,2]
[424452177,1780919442000,-3880.27,0.00013699,2]
[424452178,1780919442000,-150.99,0.00013699,2]
[424452180,1780919442000,-239765.97,0.00013699,2]
[424452179,1780919442000,-7225.95,0.00013699,2]
[424452183,1780919442000,-9999.99,0.00013699,2]
[424452185,1780919442000,-9999.99,0.00013699,2]
[424452187,1780919442000,-29044.44,0.00013699,2]
[424452184,1780919442000,-9999.99,0.00013699,2]
[424452186,1780919442000,-210.9,0.00013699,2]
[424452188,1780919442000,-4999.99,0.00013699,2]
[424452129,1780919442000,-150.0,0.00013488,2]
[424452182,1780919442000,-13534.12,0.00013699,2]
[424452159,1780919442000,-500.0,0.00013698,2]
[424452189,1780919442000,-1098.36,0.00013699,2]
[424452168,1780919442000,-500.0,0.00013698,2]
[424452169,1780919442000,-500.0,0.00013698,2]
[424452126,1780919442000,-150.0,0.00013488,2]
[424452133,1780919442000,-1714.86,0.00013608,2]
[424452123,1780919442000,-150.0,0.00013488,2]
[424452127,1780919442000,-150.0,0.00013488,2]
[424452134,1780919442000,-1298.86,0.00013608,2]
[424452135,1780919442000,-455.0,0.00013621,2]
[424452138,1780919442000,-455.0,0.00013658,2]
[424452141,1780919442000,-442.0,0.00013658,2]
[424452140,1780919442000,-450.0,0.00013658,2]
[424452143,1780919442000,-531.94649365,0.00013698,2]
[424452136,1780919442000,-150.0,0.00013624,2]
[424452142,1780919442000,-500.0,0.00013698,2]
[424452139,1780919442000,-449.0,0.00013658,2]
[424452130,1780919442000,-150.0,0.00013488,2]
[424452145,1780919442000,-500.0,0.00013698,2]
[424452158,1780919442000,-457.12873569,0.00013698,2]
[424452150,1780919442000,-500.0,0.00013698,2]
[424452147,1780919442000,-500.0,0.00013698,2]
[424452151,1780919442000,-500.0,0.00013698,2]
[424452137,1780919442000,-3720.68470655,0.00013639,2]
[424452153,1780919442000,-500.0,0.00013698,2]
[424452152,1780919442000,-500.0,0.00013698,2]
[424452156,1780919442000,-500.0,0.00013698,2]
[424452148,1780919442000,-503.93302661,0.00013698,2]
[424452154,1780919442000,-514.86964047,0.00013698,2]
[424452144,1780919442000,-500.0,0.00013698,2]
[424452146,1780919442000,-500.0,0.00013698,2]
[424452155,1780919442000,-500.0,0.00013698,2]
[424452149,1780919442000,-500.0,0.00013698,2]
[424452230,1780919443000,-192.193025,0.00013927,2]
[424452232,1780919443000,-500.0,0.00013955,2]
[424452228,1780919443000,-150.0,0.00013896,2]
[424452231,1780919443000,-500.0,0.00013955,2]
[424452227,1780919443000,-448.0,0.00013836,2]
[424452212,1780919443000,-1571.88,0.000137,2]
[424452226,1780919443000,-457.0,0.00013836,2]
[424452223,1780919443000,-489.84630771,0.00013833,2]
[424452225,1780919443000,-166.66,0.00013836,2]
[424452229,1780919443000,-2400.0,0.000139,5]
[424452224,1780919443000,-1408.77700511,0.00013833,2]
[424452233,1780919443000,-500.0,0.00013955,2]
[424452234,1780919443000,-500.0,0.00013955,2]
[424452238,1780919443000,-500.0,0.00013973,2]
[424452235,1780919443000,-500.65266857,0.00013955,2]
[424452236,1780919443000,-500.0,0.00013955,2]
[424452240,1780919443000,-500.0,0.00013973,2]
[424452241,1780919443000,-500.0,0.00013973,2]
[424452237,1780919443000,-166.66,0.00013973,2]
[424452245,1780919443000,-3720.68470655,0.0001398,2]
[424452243,1780919443000,-500.0,0.00013973,2]
[424452246,1780919443000,-250.0,0.00014,2]
[424452247,1780919443000,-150.0,0.00014033,2]
[424452244,1780919443000,-500.0,0.00013973,2]
[424452242,1780919443000,-500.0,0.00013973,2]
[424452248,1780919443000,-10000.0,0.0001405,2]
[424452219,1780919443000,-150.0,0.00013787,2]
[424452239,1780919443000,-500.0,0.00013973,2]
[424452216,1780919443000,-1107.37387678,0.00013752,2]
[424452202,1780919443000,-500.0,0.00013699,2]
[424452213,1780919443000,-451.0,0.00013711,2]
[424452250,1780919443000,-500.0,0.00014083,2]
[424452195,1780919443000,-500.0,0.00013699,2]
[424452196,1780919443000,-500.0,0.00013699,2]
[424452194,1780919443000,-500.0,0.00013699,2]
[424452190,1780919443000,-166.66,0.00013699,2]
[424452191,1780919443000,-200.0,0.00013699,2]
[424452192,1780919443000,-500.0,0.00013699,2]
[424452193,1780919443000,-500.0,0.00013699,2]
[424452198,1780919443000,-500.0,0.00013699,2]
[424452197,1780919443000,-500.0,0.00013699,2]
[424452208,1780919443000,-500.0,0.00013699,2]
[424452209,1780919443000,-500.0,0.00013699,2]
[424452203,1780919443000,-500.0,0.00013699,2]
[424452211,1780919443000,-500.0,0.00013699,2]
[424452201,1780919443000,-500.0,0.00013699,2]
[424452204,1780919443000,-339.59555246,0.00013699,2]
[424452199,1780919443000,-500.0,0.00013699,2]
[424452206,1780919443000,-500.0,0.00013699,2]
[424452207,1780919443000,-500.0,0.00013699,2]
[424452205,1780919443000,-500.0,0.00013699,2]
[424452210,1780919443000,-500.0,0.00013699,2]
[424452218,1780919443000,-347.18103299,0.00013783,2]
[424452221,1780919443000,-3720.68470655,0.00013809,2]
[424452220,1780919443000,-2000.0,0.000138,2]
[424452215,1780919443000,-451.0,0.00013711,2]